[Event "34th GER-ch Seniors-65 2022"]
[Site "Magdeburg"]
[Date "2022.08.19"]
[Round "8.4"]
[White "Pueschel, Werner"]
[Black "Vatter, Hans-Joachim"]
[Result "0-1"]
[ECO "A00"]
[WhiteElo "2034"]
[BlackElo "2186"]
[Annotator "TA"]
[PlyCount "82"]
[EventDate "2022.08.12"]
[EventType "swiss"]
[EventCountry "GER"]
[SourceTitle "playchess.com"]
[Source "ChessBase"]
[SourceQuality "1"]
[TimeControl "40/5400+30:1800+30"]

{[%evp 9,82,-25,-7,-24,0,-6,2,-11,-4,-43,-32,-39,-7,-4,-12,-34,-16,-35,-27,-33,-25,-24,-37,-29,-27,-39,-42,-83,-36,-43,-13,-47,-14,-43,0,-68,-47,-51,-65,-71,-44,-165,-160,-224,-199,-187,-112,-133,-88,-245,0,0,343,310,335,331,318,0,0,-186,-191,-174,-21,-405,-357,-1039,-1008,-1099,-1091,-29991,-29990,-29990,-29991,-29991,-29992]} 1. a3 {[%emt 0:00:03]} g6 {[%emt 0:03:20]} 2. g3 {[%emt 0:00:30]} Bg7 {[%emt 0:00:11]} 3. Bg2 {[%emt 0:00:06]} d5 {[%emt 0:02:27]} 4. Nf3 {[%emt 0:01:19]} e5 {[%emt 0:01:42]} 5. d3 {[%emt 0:01:29]} c6 {[%emt 0:02:26]} 6. Nbd2 {[%emt 0:02:01] A00: Irregular Openings.} a5 {[%emt 0:03:35]} 7. O-O {[%emt 0:01:31]} Ne7 {[%emt 0:01:56]} 8. c4 {[%emt 0:03:04] The position is equal.} O-O {[%emt 0:00:30]} 9. Qc2 {[%emt 0:02:36]} h6 {[%emt 0:02:32]} 10. Rb1 {[%emt 0:02:28]} a4 {[%emt 0:01:10] [#]} 11. b4 $146 {[%emt 0:01:18]} ({Predecessor:} 11. e4 Be6 12. b3 axb3 13. Rxb3 Ra7 14. Re1 Nd7 15. exd5 cxd5 16. Rb5 Qc7 17. Bb2 {0-1 (26) Knudsen,P (2355)-Fries Nielsen,J (2320) Aarhus 1981}) 11... axb3 {[%emt 0:00:47]} 12. Rxb3 {[%emt 0:00:20][%cal Oa3a4]} d4 {[%emt 0:04:16]} 13. e3 {[%emt 0:06:13]} dxe3 {[%emt 0:05:39]} 14. fxe3 {[%emt 0:00:08]} Na6 {[%emt 0:00:14]} 15. Ne4 {[%emt 0:04:24] Prevents Nc5.} f5 {[%emt 0:03:45]} 16. Nf2 {[%emt 0:03:50]} Nc5 {[%emt 0:00:38]} 17. Rb1 {[%emt 0:00:29]} Ne6 {[%emt 0:11:20]} 18. Rd1 {[%emt 0:04:10][%cal Od3d4]} c5 {[%emt 0:03:11]} (18... f4 $17 19. g4 g5) 19. Bb2 {[%emt 0:10:03]} Nc6 {[%emt 0:00:12]} 20. Bc1 {[%emt 0:05:07]} Rf7 {[%emt 0:04:09]} 21. Nd2 {[%emt 0:01:22]} h5 {[%emt 0:04:17]} 22. Nb3 {[%emt 0:07:50]} (22. Bd5 $11) 22... h4 $15 {[%emt 0:14:10]} 23. Bd5 {[%emt 0:01:49]} hxg3 {[%emt 0:04:18]} 24. hxg3 {[%emt 0:00:20]} Qd6 {[%emt 0:00:05]} 25. Kg2 {[%emt 0:04:34]} (25. Nh3 $15) 25... Ne7 $19 {[%emt 0:00:11]} 26. e4 {[%emt 0:00:30]} (26. Bxe6 $17 Qxe6 27. Kg1) 26... f4 {[%emt 0:01:09] aiming for ...fxg3.} 27. Rh1 {[%emt 0:03:03] [#]} Kf8 {[%emt 0:05:34]} ({Black should try} 27... fxg3 $1 $19 28. Kxg3 Nxd5 29. cxd5 Nd4 30. Nxd4 exd4+ 31. Kg2 Be5) 28. Qd1 {[%emt 0:06:25]} fxg3 {[%emt 0:04:45]} 29. Kxg3 {[%emt 0:00:17]} (29. Bxe6 $17 Bxe6 30. Nh3) 29... Rf4 $2 {[%emt 0:00:13] Really sharp!} 30. Nh3 $11 {[%emt 0:07:13]} Bh6 $2 {[%emt 0:05:15][%mdl 8192]} (30... Nxd5 $2 31. cxd5 c4 32. dxe6 $18) (30... Rf6 $1 $11) 31. Nxf4 $18 {[%emt 0:08:50]} Bxf4+ {[%emt 0:00:30]} 32. Kg2 {[%emt 0:00:35]} Bxc1 {[%emt 0:01:22]} 33. Nxc1 $2 {[%emt 0:01:24]} ({Not} 33. Rxc1 Nf4+ 34. Kf2 Qf6 $15) (33. Bxe6 $18 {Strongly threatening Rh8+.} Bf4 34. Bxc8 Rxc8 35. Qf3) 33... Nf4+ $11 {[%emt 0:00:12]} 34. Kg1 $2 {[%emt 0:03:04]} (34. Kf2 $11 {and White has nothing to worry.}) 34... Qf6 $19 {[%emt 0:01:20]} 35. Qf3 {[%emt 0:02:26]} Rxa3 $2 {[%emt 0:10:39]} (35... Nfxd5 $19 36. Qxf6+ Nxf6) 36. Kf2 {[%emt 0:01:33][%mdl 8192]} (36. Bxb7 $11 Bxb7 37. Rxb7) 36... Rc3 {[%emt 0:00:00][%cal Oc8g4] [#] White must now prevent ...Bg4!} 37. Ke3 $2 {[%emt 0:00:33]} (37. Ke1 Nxd3+ 38. Qxd3 Rxd3 39. Nxd3) 37... Rc2 {[%emt 0:00:00]} 38. Rg1 {[%emt 0:00:43] Prevents Ng2+.} Qh4 {[%emt 0:00:00][%cal Oe7f5] ( -> ...Nf5+!)} 39. Qg3 {[%emt 0:03:58]} Qh6 {[%emt 0:00:00] Black mates.} 40. Qg5 {[%emt 0:00:59]} Qh2 {[%emt 0:00:00][%csl Gc2][%cal Rh2f2]} 41. Qf6+ {[%emt 0:02:20]} Ke8 {[%emt 0:00:00] Black used his chance.  Weighted Error Value: White=0.84/Black=0.33} 0-1

[Event "34th GER-ch Seniors-65 2022"]
[Site "Magdeburg"]
[Date "2022.08.19"]
[Round "8.6"]
[White "Glienke, Manfred"]
[Black "Matthey, Harald"]
[Result "1-0"]
[ECO "A41"]
[WhiteElo "2205"]
[BlackElo "2062"]
[Annotator "TA"]
[PlyCount "67"]
[EventDate "2022.08.12"]
[EventType "swiss"]
[EventCountry "GER"]
[SourceTitle "playchess.com"]
[Source "ChessBase"]
[SourceQuality "1"]
[TimeControl "40/5400+30:1800+30"]

{[%evp 9,67,43,46,43,41,42,57,40,50,53,42,51,46,53,59,54,70,20,110,101,114,89,111,109,122,126,150,149,132,144,149,134,150,147,181,185,176,173,190,174,212,214,208,210,338,90,81,103,131,139,158,150,143,127,214,187,428,325,929,918]} 1. d4 {[%emt 0:00:03]} d6 {[%emt 0:00:09]} 2. Nf3 {[%emt 0:00:18]} Bg4 {[%emt 0:06:06]} 3. Nbd2 {[%emt 0:00:33][%cal Bb1d2,Bd2f1,Bf1g3][%mdl 32]} Nd7 {[%emt 0:03:57]} 4. h3 {[%emt 0:00:56]} Bh5 {[%emt 0:00:31]} 5. e4 {[%emt 0:00:13]} e6 {[%emt 0:02:15]} 6. Bd3 {[%emt 0:04:37] A41: 1 d4 d6: Tartakower System and Modern Defence.} Be7 {[%emt 0:00:51]} 7. c3 {[%emt 0:00:57] [#]} h6 $146 {[%emt 0:04:35]} ({Predecessor:} 7... c6 8. Qe2 Bg6 9. a4 Qc7 10. a5 Ngf6 11. Nh4 O-O 12. Nxg6 hxg6 13. O-O e5 {0-1 (52) Peng,L (2498)-Petrosian,T (2573) Warsaw 2021}) 8. Nf1 {[%emt 0:04:27] White is slightly better.} Bg5 {[%emt 0:07:50]} 9. Ng3 {[%emt 0:04:48]} Bxf3 {[%emt 0:03:32]} 10. Qxf3 {[%emt 0:00:30]} Bxc1 {[%emt 0:01:32]} 11. Rxc1 {[%emt 0:00:06]} Ngf6 {[%emt 0:04:30]} 12. O-O {[%emt 0:00:15]} O-O {[%emt 0:01:03]} 13. Qe3 {[%emt 0:03:15]} ({Better is} 13. Rce1 $14) 13... c6 {[%emt 0:04:39] [#]} (13... c5 $11 {remains equal.}) 14. f4 $1 $16 {[%emt 0:02:19]} Re8 {[%emt 0:05:25]} 15. e5 {[%emt 0:06:00]} Nd5 {[%emt 0:00:35]} 16. Qd2 {[%emt 0:02:46]} (16. Qe4 f5 17. exf6 (17. Nxf5 exf5 18. Qxf5 Nf8 $15) 17... N5xf6) 16... c5 {[%emt 0:17:54] [#]} 17. Ne4 $1 {[%emt 0:11:56]} (17. exd6 $6 cxd4 18. cxd4 N7f6 $11) 17... dxe5 {[%emt 0:06:30]} 18. dxe5 {[%emt 0:03:34]} ({Don't play} 18. fxe5 cxd4 19. cxd4 Rf8 $16) 18... Qb6 {[%emt 0:01:53]} 19. Bc4 {[%emt 0:03:39]} Qc6 {[%emt 0:04:39]} 20. Nd6 {[%emt 0:01:10]} Re7 {[%emt 0:01:30]} 21. Rcd1 {[%emt 0:03:14][%cal Rc4d5]} N5b6 {[%emt 0:03:24]} 22. Bb5 {[%emt 0:05:06][%cal Bc4b5,Bb5d3,Bd3e4][%mdl 32]} Qc7 {[%emt 0:00:08]} 23. Qe2 {[%emt 0:00:41]} a6 {[%emt 0:01:42]} 24. Bd3 {[%emt 0:02:36]} Nf8 {[%emt 0:04:49]} 25. Be4 {[%emt 0:04:55]} Rb8 {[%emt 0:00:07]} 26. Rf3 {[%emt 0:02:03]} Nc8 {[%emt 0:02:43]} (26... Ng6 $142 27. c4 Nd7) 27. c4 $2 {[%emt 0:02:21]} (27. Rg3 $18 {and the rest is easy.}) 27... Rd7 {[%emt 0:02:21][%cal Rc8d6]} 28. Rfd3 $36 {[%emt 0:01:18][%mdl 2048] And now Ne8 would win. White is in control. White is much more active.} f5 {[%emt 0:01:14]} 29. Bf3 {[%emt 0:01:36]} Na7 {[%emt 0:04:11]} 30. Qf2 {[%emt 0:01:55]} b5 {[%emt 0:00:29]} 31. b3 {[%emt 0:01:45][%cal Bb2b3,Bb3c4][%mdl 32]} bxc4 {[%emt 0:01:21]} (31... Rbd8 $16 {was called for.} 32. Qe3 bxc4 33. bxc4 (33. Nxc4 Rxd3 34. Rxd3 Rxd3 $14) 33... Nc8) 32. bxc4 $18 {[%emt 0:01:26]} ({Resist} 32. Nxc4 $6 Rxd3 33. Rxd3 Nb5 $16) 32... Rb4 $2 {[%emt 0:00:38]} (32... Kh8 33. Bh5 Re7) 33. g4 {[%emt 0:04:23]} g6 {[%emt 0:00:27]} (33... fxg4 34. hxg4 Rb6) 34. Ne8 {[%emt 0:00:14] Weighted Error Value: White=0.25 (precise) /Black=0.29 (precise)} 1-0

[Event "34th GER-ch Seniors-65 2022"]
[Site "Magdeburg"]
[Date "2022.08.19"]
[Round "8.7"]
[White "Koehler, Gerhard"]
[Black "Cichy, Michael"]
[Result "1/2-1/2"]
[ECO "A30"]
[WhiteElo "2184"]
[BlackElo "2031"]
[Annotator "TA"]
[PlyCount "119"]
[EventDate "2022.08.12"]
[EventType "swiss"]
[EventCountry "GER"]
[SourceTitle "playchess.com"]
[Source "ChessBase"]
[SourceQuality "1"]
[TimeControl "40/5400+30:1800+30"]

{[%evp 12,119,58,17,42,35,51,56,54,55,56,56,58,38,52,36,52,35,51,37,49,42,39,37,39,27,37,38,46,12,46,0,33,0,67,45,43,0,26,27,50,7,24,23,19,20,127,135,258,195,181,182,179,197,355,145,253,260,290,202,175,225,310,191,210,202,160,163,295,244,464,130,279,277,259,-835,-834,-252,-779,-830,-596,-808,-693,-1197,-1071,-8540,-7006,-1856,-964,-968,-957,-12846,-12841,-12849,-827,-12850,-728,-675,-345,-345,-345,-345,-345,-345,-8,-345,-345,-345,0,-345]} 1. c4 {[%emt 0:00:30]} Nf6 {[%emt 0:00:12]} 2. Nc3 {[%emt 0:00:10]} c5 {[%emt 0:00:58]} 3. g3 {[%emt 0:00:46]} e6 {[%emt 0:01:20]} 4. Nf3 {[%emt 0:00:23]} Nc6 {[%emt 0:01:10]} 5. Bg2 {[%emt 0:00:15]} b6 {[%emt 0:02:14]} 6. O-O {[%emt 0:02:04]} Bb7 {[%emt 0:00:41]} 7. b3 {[%emt 0:09:50]} Be7 {[%emt 0:02:33] A30: Symmetrical English: Double Fianchetto and Hedgehog.} 8. d4 {[%emt 0:01:49]} cxd4 {[%emt 0:01:07]} 9. Nxd4 {[%emt 0:00:07]} a6 {[%emt 0:04:47] White is slightly better.} 10. Bb2 {[%emt 0:10:28]} Rc8 {[%emt 0:08:15]} 11. Rc1 {[%emt 0:02:43]} O-O {[%emt 0:04:09]} 12. Qd2 {[%emt 0:03:55] [#]} d6 $146 {[%emt 0:05:19]} ({Predecessor:} 12... Nxd4 13. Bxb7 Rc7 14. Bxa6 e5 15. Nb5 Nxb5 16. Bxb5 d6 17. a4 Qa8 18. Rfd1 h6 {½-½ (39) Gritsak,O (2497)-Grekh,A (2395) Lutsk 2017}) 13. Rfd1 {[%emt 0:01:28]} Rc7 {[%emt 0:03:13]} 14. Nc2 {[%emt 0:17:21]} Ne5 {[%emt 0:04:44]} 15. e4 {[%emt 0:01:29]} Ned7 {[%emt 0:08:07]} 16. Qe2 {[%emt 0:04:55]} Qb8 {[%emt 0:07:41]} 17. Nd4 {[%emt 0:07:04]} Re8 {[%emt 0:05:39]} 18. Re1 {[%emt 0:07:53]} Bf8 {[%emt 0:05:59]} 19. Rcd1 {[%emt 0:01:24]} Ba8 {[%emt 0:03:37]} 20. Nc2 {[%emt 0:02:11]} Bb7 {[%emt 0:04:56]} (20... b5 {seems wilder.} 21. cxb5 Rec8 22. Nb4 Rxc3 23. Nxa6 Qb6) 21. f4 {[%emt 0:05:00]} (21. Qd3 $14 {feels stronger.}) 21... h6 {[%emt 0:03:39][%cal Ob6b5]} 22. Rd2 {[%emt 0:02:45]} g6 {[%emt 0:03:56]} (22... Qa7 $11) 23. Red1 {[%emt 0:02:51]} Qc8 {[%emt 0:00:26][%cal Ob6b5]} 24. e5 {[%emt 0:12:19]} dxe5 {[%emt 0:01:54]} 25. fxe5 {[%emt 0:00:39]} Bc5+ {[%emt 0:00:23]} 26. Nd4 {[%emt 0:00:19] Strongly threatening Bxb7.} Bxg2 {[%emt 0:01:06]} 27. Kxg2 {[%emt 0:00:08]} Qb7+ {[%emt 0:02:42]} 28. Kg1 {[%emt 0:00:07]} Nh5 {[%emt 0:03:54] [#]} (28... Nh7 $1 $11 {keeps the balance.}) 29. Ne4 $1 $16 {[%emt 0:02:01]} Qa8 {[%emt 0:04:46]} (29... Nxe5 $2 30. g4 Nxg4 31. Qxg4) (29... Kh7 $16 30. Rf1 Nxe5 31. Nxc5 bxc5) 30. a3 {[%emt 0:00:33]} Nf8 {[%emt 0:01:18]} (30... Nxe5 $2 31. Nxc5 (31. g4 Nxg4 32. Qxg4 f5 $17) 31... Rxc5 32. b4 Nxc4 33. bxc5 Nxd2 34. Rxd2 $18) 31. b4 $36 {[%emt 0:00:45][%mdl 2048] Black is under strong pressure.} Be7 {[%emt 0:00:21]} 32. Nd6 {[%emt 0:00:29] Against Rec8} Rb8 $2 {[%emt 0:00:29]} (32... Rd8 33. Rf1 Bg5) 33. b5 {[%emt 0:00:26]} (33. Rf1 $18) 33... Bg5 {[%emt 0:00:46]} (33... Ng7 $16 34. bxa6 Qxa6) 34. Rd3 $18 {[%emt 0:00:11] And now Nc6 would win.} axb5 {[%emt 0:01:06]} 35. N4xb5 {[%emt 0:00:11]} Rd7 {[%emt 0:01:38]} 36. h4 {[%emt 0:00:09]} (36. Qf2 $142) 36... Bd8 {[%emt 0:01:20]} 37. Rf3 {[%emt 0:00:18] Hoping for Rdf1.} Ng7 {[%emt 0:00:44]} 38. g4 {[%emt 0:00:14] Threatens to win with Rdf1.} Bxh4 {[%emt 0:00:33]} 39. Rdf1 {[%emt 0:00:21]} Rbd8 {[%emt 0:00:50]} (39... Be7 $142 40. Qe3 (40. Rxf7 Bxd6 41. Nxd6 Rxf7 $16) (40. Nxf7 Bc5+ 41. Kh2 Nf5 $16) 40... h5) 40. Rxf7 {[%emt 0:00:24]} (40. Nxf7 Rd2 41. Qe3 (41. Nxh6+ Kh7 $11) 41... R8d3 42. Qxd3 (42. Nxh6+ Kh7 $11) 42... Rxd3 43. Rxd3 Nf5 44. gxf5 Qe4 45. Nxh6+ Kh7 $14) 40... Nf5 $2 {[%emt 0:00:58]} (40... Nh7 41. Bd4 Rxf7 42. Nxf7 Rf8) 41. Rxd7 $2 {[%emt 0:08:40]} (41. Nxf5 gxf5 42. Rxd7 Rxd7 43. gxf5 Rg7+ 44. Kh2 exf5 $11) (41. gxf5 $18 {is the precise move to win.} Rxf7 42. Nxf7 Kxf7 43. Nd6+ (43. Rf4 Bg5 $11) 43... Kg8 44. fxe6) 41... Rxd7 {[%emt 0:03:15]} (41... Ng3 $16 42. Qh2 Rxd7 43. Qxh4 Nxf1) 42. gxf5 {[%emt 0:00:24] The board is on fire. Active counter play!} gxf5 {[%emt 0:00:18]} 43. Qg2+ {[%emt 0:00:10][%mdl 8192]} (43. Qf3 $18 Rg7+ 44. Kh1 Qxf3+ 45. Rxf3) 43... Rg7 $19 {[%emt 0:00:24]} 44. Qxg7+ {[%emt 0:00:43]} Kxg7 {[%emt 0:00:03]} 45. Kh2 {[%emt 0:00:28]} Ng6 {[%emt 0:01:10]} 46. Nd4 {[%emt 0:01:40]} Qg8 {[%emt 0:10:18]} 47. N4xf5+ {[%emt 0:07:26]} exf5 {[%emt 0:02:57]} 48. e6+ {[%emt 0:00:35]} Kh7 {[%emt 0:00:26]} 49. Rxf5 {[%emt 0:00:37] [#]} Bg3+ $1 {[%emt 0:03:06][%mdl 512]} 50. Kxg3 {[%emt 0:00:47]} Ne7+ {[%emt 0:00:27][%mdl 64] Discovered Attack} 51. Kf4 {[%emt 0:00:09]} Nxf5 {[%emt 0:00:16]} 52. Kxf5 {[%emt 0:00:12]} Qg6+ {[%emt 0:01:34]} (52... Qg5+ $142 53. Ke4 Qg2+ 54. Kf5 Qf2+ 55. Ke5 Qxb2+ 56. Kf5 Qf2+ 57. Ke4 Qg2+ 58. Ke5 Qg5+ 59. Ke4 Kg6) 53. Ke5 {[%emt 0:00:32]} Qg3+ {[%emt 0:05:50]} (53... Qg5+ $142 54. Ke4 Qg2+ 55. Kf4 Qh2+ 56. Kf5 Qxd6) 54. Kd5 {[%emt 0:01:04]} Qg2+ {[%emt 0:00:40]} 55. Ne4 {[%emt 0:02:01] e7 is the strong threat.} Kg6 {[%emt 0:00:24] ( -> ...Kf5)} (55... Qxb2 56. e7 Qh8 57. e8=Q (57. Nf6+ Qxf6 58. e8=Q Qg5+ 59. Kc6 Qc5+ 60. Kb7 Qxc4 $11) 57... Qxe8 58. Nf6+ Kg6 59. Nxe8 $18) 56. e7 {[%emt 0:00:47]} Kf7 {[%emt 0:00:24]} 57. Bf6 {[%emt 0:00:09] [#]} Qh1 $2 {[%emt 0:03:49]} (57... Ke8 $1 $19 {White must now prevent ...Kd7.} 58. Ke5 Qe2) 58. Ke5 $2 {[%emt 0:00:37][%mdl 8192]} (58. a4 $1 $11) 58... Qa1+ {[%emt 0:01:25]} 59. Kd5 {[%emt 0:00:38]} Qh1 {[%emt 0:00:02]} ({Worse is} 59... Qxa3 60. Nd6+ Kxf6 61. e8=Q $17) 60. Ke5 {[%emt 0:00:41][%mdl 32768] Quite a comeback for Black.  Weighted Error Value: White=0.92/Black=0.85. An unexpected result.} 1/2-1/2

[Event "34th GER-ch Seniors-65 2022"]
[Site "Magdeburg"]
[Date "2022.08.19"]
[Round "8.8"]
[White "Beilfuss, Wilfried"]
[Black "Schmidt, Gerhard"]
[Result "1/2-1/2"]
[ECO "E67"]
[WhiteElo "2154"]
[BlackElo "2100"]
[Annotator "TA"]
[PlyCount "38"]
[EventDate "2022.08.12"]
[EventType "swiss"]
[EventCountry "GER"]
[SourceTitle "playchess.com"]
[Source "ChessBase"]
[SourceQuality "1"]
[TimeControl "40/5400+30:1800+30"]

{[%evp 18,38,21,-35,97,112,139,128,120,47,41,29,37,54,70,64,47,58,53,25,26,18,25]} 1. Nf3 {[%emt 0:00:07]} Nf6 {[%emt 0:00:16]} 2. g3 {[%emt 0:00:12]} g6 {[%emt 0:00:29]} 3. Bg2 {[%emt 0:00:17]} Bg7 {[%emt 0:00:09]} 4. O-O {[%emt 0:00:09]} O-O {[%emt 0:00:13]} 5. d4 {[%emt 0:00:16]} d6 {[%emt 0:00:31]} 6. c4 {[%emt 0:00:17]} Nbd7 {[%emt 0:00:24]} 7. Nc3 {[%emt 0:00:40]} e5 {[%emt 0:00:15]} 8. Qc2 {[%emt 0:01:59]} exd4 {[%emt 0:02:26]} 9. Nxd4 {[%emt 0:00:26]} Nb6 {[%emt 0:02:56]} 10. b3 $1 {[%emt 0:03:10][%mdl 4] [#] is currently scoring better than 10.Rd1.} (10. Rd1 $11) 10... d5 $146 {[%emt 0:11:05] E67: King's Indian: Fianchetto: 6...Nbd7.} (10... c5 $1 $15 {keeps the upper hand.} 11. Nf3 Bf5) ({Predecessor:} 10... c5 11. Ndb5 a6 12. Na3 Bf5 13. e4 Nxe4 14. Bxe4 Bxe4 15. Nxe4 Bxa1 16. Bg5 f6 17. Bh6 Bd4 18. Bxf8 Kxf8 {1-0 (70) Xiong,J (2685)-Demchenko,A (2654) Chess.com INT 2022}) 11. Ba3 $16 {[%emt 0:01:06]} Re8 {[%emt 0:02:04] [#]} 12. cxd5 $1 {[%emt 0:05:37] White is more active.} Nfxd5 {[%emt 0:29:01] White is better.} 13. Rad1 {[%emt 0:03:10]} (13. Nxd5 $16 Nxd5 14. Rad1) 13... Nxc3 $14 {[%emt 0:03:09]} 14. Qxc3 {[%emt 0:00:06][%cal Oc3c1] aiming for Qc1!} c6 {[%emt 0:07:09] [#]} 15. Qc1 $1 {[%emt 0:05:35][%cal Od4c6] Threatens to win with Nxc6!} Qf6 {[%emt 0:03:57]} ({Not} 15... Bxd4 16. e3 $16) (15... Bd7 16. e4) 16. Rd2 {[%emt 0:12:16]} Qg5 {[%emt 0:05:09]} 17. Bb2 {[%emt 0:07:22]} Qh5 {[%emt 0:02:41]} 18. Nf3 {[%emt 0:08:50]} Bxb2 {[%emt 0:00:49]} 19. Qxb2 {[%emt 0:00:11]} Bh3 {[%emt 0:00:48] Weighted Error Value: White=0.19 (very precise) /Black=0.30} 1/2-1/2

[Event "34th GER-ch Seniors-65 2022"]
[Site "Magdeburg"]
[Date "2022.08.19"]
[Round "8.11"]
[White "Vasiljev, Jurij"]
[Black "Heinemann, Ernst"]
[Result "0-1"]
[ECO "A57"]
[WhiteElo "1999"]
[BlackElo "2120"]
[Annotator "TA"]
[PlyCount "95"]
[EventDate "2022.08.12"]
[EventType "swiss"]
[EventCountry "GER"]
[SourceTitle "playchess.com"]
[Source "ChessBase"]
[SourceQuality "1"]
[TimeControl "40/5400+30:1800+30"]

{[%evp 11,95,-8,9,-21,-17,-57,-4,-10,15,-78,-77,-118,-117,-117,-118,-122,-123,-112,-128,-150,-134,-131,-109,-147,-150,-173,-166,-176,-163,-161,-179,-213,-214,-222,-219,-204,-157,-162,-116,-199,-199,-175,-155,-144,-149,-150,-148,-155,-118,-149,-125,-142,-139,-139,-131,-139,-119,-128,-91,-90,-99,-95,-89,-109,-102,-122,-122,-122,-122,-122,-122,-122,-122,-122,-122,-122,-122,-122,-122,-467,-122,-122,0,-122,-122,-122]} 1. d4 {[%emt 0:00:04]} Nf6 {[%emt 0:00:22]} 2. c4 {[%emt 0:00:16]} c5 {[%emt 0:00:20]} 3. d5 {[%emt 0:00:20]} b5 {[%emt 0:01:05]} 4. b3 {[%emt 0:01:33]} bxc4 {[%emt 0:03:09]} 5. bxc4 {[%emt 0:00:10]} g6 {[%emt 0:00:15]} 6. Bb2 {[%emt 0:00:10]} Bg7 {[%emt 0:00:12]} 7. Nf3 {[%emt 0:02:54] A57: Benko/Volga Gambit.} O-O {[%emt 0:01:02]} 8. g3 {[%emt 0:04:04]} d6 {[%emt 0:01:06]} ({Black should play} 8... e6 $1 $15) 9. Bg2 $11 {[%emt 0:00:29] The position is equal.} Qb6 {[%emt 0:04:04]} 10. Qb3 {[%emt 0:00:29] [#]} (10. Bc3 $11) 10... Nbd7 $1 $17 {[%emt 0:02:17]} ({But not} 10... Ne4 11. Bxg7 Kxg7 12. O-O $11) 11. O-O {[%emt 0:04:01] [#]} Rb8 $146 {[%emt 0:03:52]} ({Predecessor:} 11... Ba6 12. Nbd2 Rfb8 13. Bxf6 Nxf6 14. Rab1 Qc7 15. Qa4 Bc8 16. Rxb8 Rxb8 17. Rb1 Rxb1+ 18. Nxb1 {0-1 (32) Rodrigues,N-Medeiros,J (2258) Blumenau 2010}) 12. Nbd2 {[%emt 0:03:15]} Qa6 {[%emt 0:07:40]} 13. Qc2 {[%emt 0:05:35] [#]} Rxb2 {[%emt 0:05:40][%mdl 512]} 14. Qxb2 {[%emt 0:00:15] [#]} Nxd5 $1 {[%emt 0:02:25][%mdl 512]} 15. Qc2 {[%emt 0:00:43]} (15. Qb3 Bxa1) 15... Bxa1 {[%emt 0:10:12] Black is more active.} 16. Rxa1 {[%emt 0:00:17]} N5f6 {[%emt 0:00:41]} 17. e4 {[%emt 0:03:46]} Ng4 {[%emt 0:06:05]} 18. h3 {[%emt 0:04:57]} Nge5 {[%emt 0:00:21]} 19. Nxe5 {[%emt 0:00:13]} Nxe5 {[%emt 0:00:07]} 20. f4 {[%emt 0:00:11]} Nc6 {[%emt 0:00:50]} 21. Nf3 {[%emt 0:00:51]} Be6 {[%emt 0:03:22]} 22. Bf1 {[%emt 0:00:25]} Qa3 {[%emt 0:03:47]} 23. Qb3 {[%emt 0:03:27]} Qb4 {[%emt 0:05:30]} 24. Qxb4 {[%emt 0:03:22]} Nxb4 {[%emt 0:03:25]} ({Black should try} 24... cxb4 $19 25. g4 f6) 25. Ng5 {[%emt 0:06:29]} (25. a3 $17 {keeps fighting.} Nc6 26. Rb1) 25... Bd7 $19 {[%emt 0:00:45]} 26. Rb1 {[%emt 0:01:03]} Rb8 {[%emt 0:00:42]} ({Not} 26... Nxa2 27. Ra1 Nc3 28. Rxa7 $17) 27. a3 {[%emt 0:00:21]} Nc6 {[%emt 0:00:33]} 28. Rxb8+ {[%emt 0:00:12]} Nxb8 $17 {[%emt 0:00:04][%mdl 4096] Endgame KBN-KBN} 29. Kf2 {[%emt 0:02:32]} Nc6 {[%emt 0:03:30]} 30. Nf3 {[%emt 0:00:30]} Na5 {[%emt 0:06:19]} 31. Ke3 {[%emt 0:01:27]} Be6 {[%emt 0:01:33]} 32. Nd2 {[%emt 0:00:29]} f6 {[%emt 0:00:54][%cal Bf7f6,Bf6f5][%mdl 32]} 33. h4 {[%emt 0:01:21]} Bg4 {[%emt 0:01:54]} 34. e5 {[%emt 0:05:56]} f5 {[%emt 0:08:29]} ({Inferior is} 34... fxe5 35. fxe5 Kf7 36. Kf4) 35. exd6 {[%emt 0:00:23]} exd6 {[%emt 0:00:09]} 36. Bg2 {[%emt 0:03:10]} Bd1 {[%emt 0:00:47]} 37. Kd3 {[%emt 0:02:39]} Nb3 {[%emt 0:01:23]} 38. Nxb3 {[%emt 0:00:17]} Bxb3 {[%emt 0:00:06] KB-KB} 39. Bd5+ {[%emt 0:01:22]} Kg7 {[%emt 0:00:06]} 40. Bf3 {[%emt 0:02:29]} Kf6 {[%emt 0:02:41]} 41. Kc3 {[%emt 0:30:33]} Ba4 {[%emt 0:31:09]} 42. Kd2 {[%emt 0:00:16]} Bd7 {[%emt 0:03:04]} 43. Kc3 {[%emt 0:00:18]} h6 {[%emt 0:01:05]} 44. Kd3 {[%emt 0:01:50]} Be6 {[%emt 0:00:39]} 45. Ke3 $2 {[%emt 0:08:54][%mdl 8192]} (45. Kc3 $17) 45... Ke7 $2 {[%emt 0:01:10]} (45... Bxc4 $19 {is more deadly.} 46. Bc6 d5) 46. Kd3 {[%emt 0:00:42]} Kf6 {[%emt 0:01:15]} (46... Kf7 $17 47. Kc3 Ke7) 47. Kc3 {[%emt 0:05:01]} (47. Ke3 $1 $11 {was the only way to keep the balance.}) 47... g5 {[%emt 0:00:33]} 48. Kd3 {[%emt 0:00:24] Weighted Error Value: White=0.34/Black=0.23 (precise)} 0-1

[Event "34th GER-ch Seniors-65 2022"]
[Site "Magdeburg"]
[Date "2022.08.20"]
[Round "9.1"]
[White "Klundt, Klaus"]
[Black "Buchal, Stephan"]
[Result "1/2-1/2"]
[ECO "B06"]
[WhiteElo "2288"]
[BlackElo "2230"]
[Annotator "TA"]
[PlyCount "35"]
[EventDate "2022.08.12"]
[EventType "swiss"]
[EventCountry "GER"]
[SourceTitle "playchess.com"]
[Source "ChessBase"]
[SourceQuality "1"]
[TimeControl "40/5400+30:1800+30"]

{[%evp 9,22,45,50,24,22,22,27,31,55,37,41,24,53,60,41]} 1. e4 {[%emt 0:00:02]} g6 {[%emt 0:00:15]} 2. d4 {[%emt 0:00:08]} Bg7 {[%emt 0:00:10]} 3. Nc3 {[%emt 0:00:18]} d6 {[%emt 0:00:17]} 4. Be3 {[%emt 0:00:26]} a6 {[%emt 0:00:22]} 5. Qd2 {[%emt 0:01:03]} b5 {[%emt 0:00:36]} 6. h4 {[%emt 0:04:25] B06: Modern Defence.} Nf6 {[%emt 0:02:10]} 7. f3 {[%emt 0:00:36]} h5 {[%emt 0:00:20]} 8. O-O-O {[%emt 0:01:23]} c6 {[%emt 0:01:37]} 9. Kb1 {[%emt 0:00:24]} Qc7 {[%emt 0:01:09]} 10. e5 {[%emt 0:03:52]} dxe5 {[%emt 0:06:22]} 11. dxe5 {[%emt 0:00:10]} Nd5 $1 {[%emt 0:01:17] [#]  Weighted Error Value: White=0.08 (flawless) /Black=0.07 (flawless)} {Predecessor:} 12. f4 $146 O-O 13. Nxd5 cxd5 14. Qxd5 Nc6 15. Qc5 Be6 16. Nf3 Qa5 17. Qxc6 Qxa2+ 18. Kc1 {0-1 (58) Tukhaev,A (2558)-Mchedlishvili,M (2602) Kocaeli 2017} 1/2-1/2